[Event "FIDE WSTC Open 50 2025"]
[Site "Prague"]
[Date "2025.02.17"]
[Round "1.11"]
[White "Fink-Nunn, Petra"]
[Black "Thorhallsson, Throstur"]
[Result "1/2-1/2"]
[Annotator "TA"]
[ECO "B57"]
[WhiteElo "2003"]
[BlackElo "2394"]
[PlyCount "77"]
[EventDate "2025.02.17"]
[EventType "team-tourn"]
[EventCountry "CZE"]
[SourceTitle "playchess.com"]
[Source "ChessBase"]
[SourceQuality "1"]
[TimeControl "40/5400+30:1800+30"]

{[%evp 16,77,14,11,14,12,10,5,6,13,35,18,40,29,56,45,66,24,43,50,39,38,30,18,12,8,26,-11,24,27,22,10,8,0,0,-7,0,-6,0,0,0,0,0,0,0,0,0,-31,-30,-18,-22,-58,-52,-43,-43,-91,-3,-2,-2,-1,0,0,0,-16]} 1. e4 {[%emt 0:00:04]} c5 {[%emt 0:00:16]} 2. Nf3 {[%emt 0:00:12]} Nc6 {[%emt 0:00:48]} 3. d4 {[%emt 0:00:19]} cxd4 {[%emt 0:00:08]} 4. Nxd4 {[%emt 0:00:07]} Nf6 {[%emt 0:00:23]} 5. Nc3 {[%emt 0:00:24]} d6 {[%emt 0:00:17]} 6. Bc4 {[%emt 0:00:29]} Qb6 {[%emt 0:00:45]} 7. Nxc6 {[%emt 0:01:13]} bxc6 {[%emt 0:00:26]} 8. b3 {[%emt 0:00:45]} g6 {[%emt 0:07:03]} 9. O-O {[%emt 0:01:12]} Bg7 {[%emt 0:00:16] B57: Classical Sicilian: Sozin with 6...Qb6.} 10. Na4 {[%emt 0:00:23]} Qc7 {[%emt 0:02:01]} 11. Bb2 {[%emt 0:00:14]} O-O {[%emt 0:02:01]} 12. Re1 {[%emt 0:00:39]} e5 {[%emt 0:04:55]} 13. Bf1 {[%emt 0:08:43]} Be6 $146 {[%emt 0:07:40]} ({Predecessor:} 13... d5 14. exd5 Nxd5 15. g3 Bf5 16. Qe2 Rfe8 17. Bg2 h5 18. Qc4 Rac8 19. Qe2 h4 {0-1 Zak,U (2363)-Paragua,M (2534) Calvia op 1st 2004 (7)}) 14. c4 {[%emt 0:04:59]} Rad8 {[%emt 0:02:56]} 15. Qd2 {[%emt 0:22:46]} Nh5 {[%emt 0:15:44]} 16. Nc3 {[%emt 0:15:56]} f5 {[%emt 0:04:49]} 17. Rad1 {[%emt 0:12:22]} Rfe8 {[%emt 0:05:26]} 18. Ba3 {[%emt 0:06:44][%cal Ra3d6]} Bf8 {[%emt 0:02:07]} 19. Qc2 {[%emt 0:09:04][%cal Oc4c5]} Nf6 {[%emt 0:04:18]} 20. exf5 Bxf5 {[%emt 0:03:02]} 21. Qe2 {[%emt 0:07:34]} Qa5 {[%emt 0:08:46]} 22. Qb2 {[%emt 0:01:19]} d5 {[%emt 0:11:51]} 23. Bxf8 {[%emt 0:01:16]} Kxf8 {[%emt 0:00:04]} 24. cxd5 {[%emt 0:00:51]} cxd5 {[%emt 0:00:13]} 25. b4 {[%emt 0:01:07]} Qb6 {[%emt 0:01:37]} 26. Na4 {[%emt 0:00:48][%csl LRb6,LRe5]} Qb8 {[%emt 0:03:21]} 27. f4 {[%emt 0:00:23]} d4 {[%emt 0:06:27]} 28. Nc5 {[%emt 0:02:19]} Kg7 {[%emt 0:00:45]} 29. fxe5 {[%emt 0:00:31]} Rxe5 {[%emt 0:00:07]} 30. Rxe5 {[%emt 0:00:21]} Qxe5 {[%emt 0:00:02]} 31. Qe2 {[%emt 0:00:11]} Ng4 {[%emt 0:03:09][%csl Gg4][%cal Re5h2] [#]} 32. Qxe5+ {[%emt 0:01:01]} Nxe5 {[%emt 0:00:02]} 33. Bd3 {[%emt 0:01:28]} Nxd3 {[%emt 0:02:11]} 34. Nxd3 $15 {[%emt 0:00:01] KRB-KRN} Kf6 {[%emt 0:02:26]} 35. Kf2 {[%emt 0:00:08]} (35. Nc5 $15) 35... Bxd3 {[%emt 0:00:49]} ({Black should play} 35... Ke6 $17 {Threatens to win with ...Kd5.} 36. Nc5+ Ke5) 36. Rxd3 $11 {[%emt 0:00:01] The position is equal.} Ke5 {[%emt 0:00:07]} 37. Ke2 {[%emt 0:01:43]} Ke4 {[%emt 0:00:33]} 38. Rh3 {[%emt 0:00:36]} Rc8 {[%emt 0:01:00]} 39. Ke1 {Weighted Error Value: White=0.09 (flawless) /Black=0.11 (very precise)   Mistake:       	White=1     	Black=1      Inaccurate:     	White=4     	Black=2      OK:         	White=15    	Black=12} ({Don't play} 39. Rxh7 Rc2+ 40. Ke1 Rxa2 $15) 1/2-1/2

[Event "FIDE WSTC Open 50 2025"]
[Site "Prague"]
[Date "2025.02.17"]
[Round "1.12"]
[White "Arnason, Jon L"]
[Black "Frostick, Helen M"]
[Result "1-0"]
[Annotator "TA"]
[ECO "B18"]
[WhiteElo "2405"]
[BlackElo "1880"]
[PlyCount "53"]
[EventDate "2025.02.17"]
[EventType "team-tourn"]
[EventCountry "CZE"]
[SourceTitle "playchess.com"]
[Source "ChessBase"]
[SourceQuality "1"]
[TimeControl "40/5400+30:1800+30"]

{[%evp 11,52,9,27,4,10,0,-8,-4,2,0,0,-20,7,7,20,0,7,-27,-29,-43,39,37,60,57,75,73,82,77,85,87,83,75,93,86,121,118,99,137,145,102,122,97,751]} 1. e4 {[%emt 0:00:08]} c6 {[%emt 0:00:17]} 2. d4 {[%emt 0:00:10]} d5 {[%emt 0:00:09]} 3. Nd2 {[%emt 0:00:28][%cal Bb1d2,Bd2e4,Be4g3][%mdl 32]} dxe4 {[%emt 0:00:17]} 4. Nxe4 {[%emt 0:00:06]} Bf5 {[%emt 0:00:36]} 5. Ng3 {[%emt 0:01:58]} Bg6 {[%emt 0:00:23]} 6. h4 {[%emt 0:00:10]} h6 {[%emt 0:00:20]} 7. Be3 {[%emt 0:02:37] B18: Classical Caro-Kann: 4...Bf5 sidelines.} e6 {[%emt 0:07:40]} 8. Bd3 {[%emt 0:04:30]} Bxd3 {[%emt 0:00:41]} 9. Qxd3 {[%emt 0:00:05] The position is equal.} Nd7 {[%emt 0:01:03]} 10. O-O-O $146 {[%emt 0:04:12]} (10. Nf3 Bd6 11. Ne2 Ngf6 12. O-O-O Qc7 13. Nc3 Ng4 14. Ne4 Be7 15. Bd2 f5 16. Rdf1 fxe4 17. Qxe4 Ngf6 18. Qg6+ Kf8 19. g4 Qd8 20. Rfg1 {0-1 Kozlowska,M-Mikulewicz,J POL-ch U12 Girls 1998}) 10... Ngf6 {[%emt 0:02:57]} 11. N1e2 {[%emt 0:02:18]} Qa5 {[%emt 0:04:52]} 12. Kb1 {[%emt 0:01:40]} Rd8 {[%emt 0:12:21]} 13. c4 {[%emt 0:22:41]} b5 {[%emt 0:16:21]} 14. Qc2 {[%emt 0:01:07][%cal Od4d5]} bxc4 {[%emt 0:04:37]} 15. Qxc4 {[%emt 0:01:31]} Qb5 {[%emt 0:03:58]} (15... Rc8 $15) 16. Rc1 $14 {[%emt 0:01:53][%cal Bd1c1,Bc1c2,Bc2c6][%mdl 32]} Rb8 {[%emt 0:10:48][%csl Gb8][%cal Rb5b2] [#]} 17. Rc2 {[%emt 0:12:00] Successful Defense White} (17. Qxc6 $2 Qxb2#) 17... Ba3 {[%emt 0:02:46][%cal Bf8a3,Ba3b4,Bb4e7][%mdl 32]} 18. Qxb5 {[%emt 0:01:39]} Rxb5 {[%emt 0:00:26]} 19. Ka1 {[%emt 0:00:54]} ({Don't play} 19. Rxc6 Rxb2+ 20. Ka1 Rb8 $15) 19... Bb4 {[%emt 0:05:28]} 20. Rxc6 {[%emt 0:00:55] [#] and Rc8+ would now be decisive} O-O {[%emt 0:03:44]} 21. Rhc1 {[%emt 0:02:26]} Nd5 {[%emt 0:02:40]} 22. Ne4 {[%emt 0:04:52]} Nxe3 {[%emt 0:15:15]} 23. fxe3 {[%emt 0:00:07]} Nb6 {[%emt 0:01:24]} 24. a3 {[%emt 0:15:12] White is more active.} Be7 {[%emt 0:00:42]} 25. g3 {[%emt 0:00:09]} Nd5 {[%emt 0:00:15][%cal Ob5b7] Inhibits Rc7.} 26. N2c3 {[%emt 0:00:59]} a5 $2 {[%emt 0:01:47][%mdl 8192]} 27. Nxb5 {[%emt 0:00:06] Weighted Error Value: White=0.10 (very precise) /Black=0.47  Loses game:     	---       	Black=1      Mistake:       	---       	Black=1      Inaccurate:     	White=1     	Black=2      OK:         	White=11    	Black=7      Best:        	White=1     	---} 1-0

[Event "FIDE WSTC Open 50 2025"]
[Site "Prague"]
[Date "2025.02.17"]
[Round "1.14"]
[White "Gardela Batlle, Jordi"]
[Black "Bellini, Fabio"]
[Result "1/2-1/2"]
[Annotator "TA"]
[ECO "D50"]
[WhiteElo "2035"]
[BlackElo "2408"]
[PlyCount "79"]
[EventDate "2025.02.17"]
[EventType "team-tourn"]
[EventCountry "CZE"]
[SourceTitle "playchess.com"]
[Source "ChessBase"]
[SourceQuality "1"]
[TimeControl "40/5400+30:1800+30"]

{[%evp 9,79,23,29,0,25,23,28,23,20,0,0,-22,-18,-23,-22,-35,0,-8,0,0,0,0,0,0,0,-55,-62,-56,-45,-50,-53,-52,-57,-82,-83,-77,-76,-83,-79,-84,-71,-90,-71,-76,-32,-107,-109,-107,-52,-106,-110,-102,-86,-92,-57,-70,-60,-63,-61,-120,0,-109,0,0,0,0,0,0,0,0,0,0]} 1. d4 {[%emt 0:00:06]} d5 {[%emt 0:00:14]} 2. c4 {[%emt 0:00:16]} e6 {[%emt 0:00:07]} 3. Nc3 {[%emt 0:01:27]} Nf6 {[%emt 0:00:09]} 4. Bg5 {[%emt 0:02:13]} dxc4 {[%emt 0:00:49]} 5. e3 {[%emt 0:12:46]} c5 {[%emt 0:01:03]} 6. Bxc4 {[%emt 0:07:02] D50: Queen's Gambit Declined: Dutch-Peruvian Gambit.} a6 {[%emt 0:05:57]} 7. Nf3 {[%emt 0:16:32]} b5 {[%emt 0:01:47]} 8. Be2 {[%emt 0:03:28] White has an edge.} (8. Nxb5 $2 axb5 9. Bxb5+ Bd7 10. Bxd7+ Nbxd7 $17 (10... Qxd7 11. Bxf6 gxf6 12. O-O $17)) 8... Bb7 {[%emt 0:01:43]} 9. O-O {[%emt 0:01:44]} Nbd7 {[%emt 0:00:52]} 10. Qb3 {[%emt 0:08:49]} Rc8 {[%emt 0:10:32]} 11. a3 {[%emt 0:06:59]} h6 {[%emt 0:07:02]} 12. Bh4 {[%emt 0:01:30]} Qb6 $146 {[%emt 0:03:20]} (12... Bd6 $5) (12... Bd6 13. Rfd1 Qc7 14. Bg3 Bxg3 15. hxg3 O-O 16. Rac1 Rfd8 17. dxc5 Nxc5 {½-½ Postny,E (2557)-Hovhannisyan,R (2622) EU-chT 23rd Terme Catez 2021 (3.6)}) 13. Rfd1 {[%emt 0:03:18]} cxd4 {[%emt 0:06:09]} 14. Rxd4 {[%emt 0:07:06]} Bc5 {[%emt 0:08:39]} 15. Rd2 {[%emt 0:02:23] A sharp opening} Be7 {[%emt 0:02:14]} 16. Qd1 {[%emt 0:06:10]} Nc5 {[%emt 0:02:02]} 17. b4 {[%emt 0:07:55]} (17. Rc1 $11) 17... Nce4 $15 {[%emt 0:06:01]} 18. Nxe4 {[%emt 0:00:04]} Nxe4 {[%emt 0:00:11]} 19. Rc2 {[%emt 0:03:54]} Nc3 {[%emt 0:08:38]} 20. Qd2 {[%emt 0:02:41]} Bxh4 {[%emt 0:03:52]} 21. Rxc3 {[%emt 0:02:13]} Rxc3 {[%emt 0:00:31]} 22. Qxc3 {[%emt 0:00:34]} Bf6 {[%emt 0:00:12] This pair of bishops is nice.} 23. Nd4 {[%emt 0:00:24]} O-O {[%emt 0:00:29]} 24. Rd1 {[%emt 0:01:02]} Rc8 {[%emt 0:01:15]} 25. Qe1 {[%emt 0:00:53]} g6 {[%emt 0:01:28]} 26. h3 {[%emt 0:01:13]} Kg7 {[%emt 0:01:08]} 27. Bf3 {[%emt 0:00:40] [#]} (27. Nb3 $15) 27... Bxf3 $1 $17 {[%emt 0:03:19]} 28. gxf3 {[%emt 0:00:02]} Rc4 {[%emt 0:00:50]} ({Better is} 28... Qb7 $17 29. Kg2 Qd5) 29. Nb3 {[%emt 0:00:28]} ({White should play} 29. Ne2 $15) 29... Rc3 {[%emt 0:01:11][%cal Bc4c3,Bc3a3,Ba3a2][%mdl 32]} 30. Nc5 {[%emt 0:00:16]} Rxa3 {[%emt 0:01:42][%csl Ob4,Oh3] White has weak pawns} 31. Ne4 {[%emt 0:00:49] Prevents Bc3.} Be5 {[%emt 0:02:09]} 32. Kg2 {[%emt 0:00:40]} Ra2 {[%emt 0:01:33]} 33. Rd7 {[%emt 0:00:18] Repels Qc7} Qc6 {[%emt 0:03:08] Repels Qc1} 34. Qd1 {[%emt 0:00:01] [#]} (34. Nc5 $1 $15) 34... g5 {[%emt 0:01:12]} (34... a5 $1 $17 {and ...Ra1 should not be overlooked} 35. bxa5 Rxa5) 35. Qd3 {[%emt 0:00:46]} (35. Re7 $1 $11) 35... Qc4 {[%emt 0:05:12]} (35... Ra4 $17 36. Qd2 Qc4) 36. Rxf7+ $1 $11 {[%emt 0:00:29] The position is equal.} Kxf7 {[%emt 0:06:45]} 37. Qd7+ {[%emt 0:00:02]} Kg8 {[%emt 0:02:10][%cal Oe5g7]} 38. Qe8+ {[%emt 0:00:14]} Kg7 {[%emt 0:00:05][%cal Oc4c7]} 39. Qe7+ {[%emt 0:00:09]} Kg8 {[%emt 0:00:50]} 40. Qe8+ {[%emt 0:00:03] Weighted Error Value: White=0.17 (very precise) /Black=0.14 (very precise)   Mistake:       	White=5     	Black=3      Inaccurate:     	---       	Black=3      OK:         	White=14    	Black=10     Best:        	White=1     	Black=3      Strong:       	White=1     	Black=1} 1/2-1/2

[Event "FIDE WSTC Open 50 2025"]
[Site "Prague"]
[Date "2025.02.17"]
[Round "1.15"]
[White "Bellia, Fabrizio"]
[Black "Tornay Gomez, Josu"]
[Result "1-0"]
[Annotator "TA"]
[ECO "C78"]
[WhiteElo "2393"]
[BlackElo "1995"]
[PlyCount "79"]
[EventDate "2025.02.17"]
[EventType "team-tourn"]
[EventCountry "CZE"]
[SourceTitle "playchess.com"]
[Source "ChessBase"]
[SourceQuality "1"]
[TimeControl "40/5400+30:1800+30"]

{[%evp 21,79,0,0,-9,50,59,66,72,77,69,71,-25,114,99,74,75,114,83,122,127,125,86,114,118,151,127,145,139,146,48,104,111,112,78,471,466,565,529,723,707,723,726,724,714,789,777,758,989,1009,1016,994,997,966,852,1114,1114,1200,1197,1158,1157]} 1. e4 {[%emt 0:00:06]} e5 {[%emt 0:00:04]} 2. Nf3 {[%emt 0:00:06]} Nc6 {[%emt 0:00:04]} 3. Bb5 {[%emt 0:00:04]} a6 {[%emt 0:00:03]} 4. Ba4 {[%emt 0:00:07]} Nf6 {[%emt 0:00:04]} 5. O-O {[%emt 0:00:09]} Bc5 {[%emt 0:00:06]} 6. c3 {[%emt 0:01:22]} b5 {[%emt 0:00:05]} 7. Bb3 {[%emt 0:00:31]} d6 {[%emt 0:00:08]} 8. d4 {[%emt 0:00:31][%cal Bd2d4,Bd4d5][%mdl 32]} Bb6 {[%emt 0:00:06]} 9. h3 {[%emt 0:00:42]} O-O {[%emt 0:00:23]} 10. Re1 {[%emt 0:00:25]} Bb7 {[%emt 0:03:23]} 11. a4 {[%emt 0:17:13]} h6 {[%emt 0:05:58]} 12. Be3 {[%emt 0:10:18] is now debated instead of 12.d5. C78: Ruy Lopez: Archangelsk and Möller Defences.} Nxe4 $146 {[%emt 0:11:50]} (12... exd4 $11 13. cxd4 Na5) ({Predecessor:} 12... exd4 13. cxd4 Nb4 14. Qd2 a5 15. Bxh6 Nxe4 16. Rxe4 Bxe4 17. Bg5 Qd7 18. Nh2 Bxb1 19. Rxb1 bxa4 {0-1 Shirov,A (2660)-Caruana,F (2805) Titled Tuesday intern op 11th Jun Late blitz 2024 (6)}) 13. d5 $1 $14 {[%emt 0:00:58] aiming for Bxb6.} Bxe3 {[%emt 0:00:09]} 14. Rxe3 {[%emt 0:00:26] A sharp opening. White is slightly better.} Nxf2 {[%emt 0:02:45]} 15. Kxf2 {[%emt 0:00:36]} Ne7 {[%emt 0:00:36]} 16. Kg1 {[%emt 0:07:36]} (16. Re1 $16) 16... Ng6 {[%emt 0:01:57]} (16... bxa4 $1 $11 17. Rxa4 c6) 17. Nbd2 {[%emt 0:08:08]} Nf4 {[%emt 0:00:40]} 18. Nf1 $1 {[%emt 0:00:31]} Qf6 {[%emt 0:00:33]} 19. N3h2 {[%emt 0:08:07]} Rac8 {[%emt 0:05:54]} 20. axb5 {[%emt 0:02:17]} axb5 {[%emt 0:01:19]} 21. Ra7 {[%emt 0:01:05]} Ba8 {[%emt 0:05:19]} 22. Rg3 {[%emt 0:01:44]} Qh4 {[%emt 0:20:28]} 23. Rg4 {[%emt 0:09:17]} Qe7 {[%emt 0:00:30]} 24. Ne3 {[%emt 0:01:34]} f5 {[%emt 0:01:54] [#]} 25. Rg3 {[%emt 0:00:05]} (25. Rxf4 $1 $16 exf4 26. Nc2) 25... Qh4 {[%emt 0:01:02]} (25... e4 $14) 26. Nhf1 $16 {[%emt 0:01:37]} Nh5 {[%emt 0:06:59]} 27. Rg6 {[%emt 0:01:02]} Nf4 $2 {[%emt 0:01:03][%mdl 8192] [#] A mistake that costs the game.} (27... Kh7 $16 {is more resistant.} 28. Re6 Kh8) 28. g3 $1 $18 {[%emt 0:02:59] White is clearly winning.} ({Less strong is} 28. Rg3 Nh5 29. Rg6 Kh7 $16) 28... Nxh3+ {[%emt 0:05:41]} 29. Kh2 {[%emt 0:02:56]} Qe4 {[%emt 0:04:42] White must now prevent ...Nf2.} 30. Bc2 {[%emt 0:01:24]} Nf2 {[%emt 0:00:37]} 31. Bxe4 {[%emt 0:00:07]} Nxd1 {[%emt 0:00:06]} 32. Bxf5 {[%emt 0:00:20]} Nxe3 {[%emt 0:03:21]} 33. Nxe3 {[%emt 0:00:08]} Rce8 {[%emt 0:03:44]} 34. Rxc7 {[%emt 0:01:05]} Rf7 {[%emt 0:00:29]} 35. Be6 {[%emt 0:01:54]} Rxe6 {[%emt 0:00:17]} 36. Rc8+ {[%emt 0:00:05]} Kh7 {[%emt 0:00:35]} 37. Rxe6 {[%emt 0:00:38]} Rf2+ {[%emt 0:00:50]} 38. Kg1 {[%emt 0:00:25]} Re2 {[%emt 0:01:09]} 39. Rxa8 {[%emt 0:00:36]} Rxe3 {[%emt 0:00:08]} 40. Kf2 {[%emt 0:00:25] Weighted Error Value: White=0.13 (very precise) /Black=0.70  Loses game:     	---       	Black=1      Mistake:       	White=2     	Black=3      Inaccurate:     	White=2     	Black=4      OK:         	White=5     	Black=4      Best:        	White=1     	---        Strong:       	White=3     	---} 1-0

[Event "FIDE WSTC Open 50 2025"]
[Site "Prague"]
[Date "2025.02.17"]
[Round "1.16"]
[White "Marin Aso, Jose Luis"]
[Black "D'Amore, Carlo"]
[Result "0-1"]
[Annotator "TA"]
[ECO "B06"]
[WhiteElo "1948"]
[BlackElo "2362"]
[PlyCount "77"]
[EventDate "2025.02.17"]
[EventType "team-tourn"]
[EventCountry "CZE"]
[SourceTitle "playchess.com"]
[Source "ChessBase"]
[SourceQuality "1"]
[TimeControl "40/5400+30:1800+30"]

{[%evp 13,77,62,62,56,49,47,52,0,47,16,9,-16,0,-11,-22,-39,93,51,43,-91,-105,-136,-136,-285,-281,-288,-224,-227,-218,-220,-201,-230,-231,-248,-240,-275,-166,-157,-153,-187,-197,-225,-225,-214,-169,-191,-93,-529,-548,-530,-521,-477,-462,-382,-374,-374,-386,-29975,-29977,-29978,-29977,-29976,-29978,-29978,-29980,-29980]} 1. e4 {[%emt 0:00:03]} g6 {[%emt 0:00:29]} 2. d4 {[%emt 0:00:17]} Bg7 {[%emt 0:00:09]} 3. Nc3 {[%emt 0:00:14]} d6 {[%emt 0:00:30]} 4. f4 {[%emt 0:00:28]} a6 {[%emt 0:02:29]} 5. Nf3 {[%emt 0:00:40]} b5 {[%emt 0:01:45]} 6. Bd3 {[%emt 0:02:33]} Bb7 {[%emt 0:02:09]} 7. O-O {[%emt 0:04:02]} Nd7 {[%emt 0:07:10]} 8. a4 {[%emt 0:20:54]} c5 {[%emt 0:16:23]} 9. axb5 {[%emt 0:08:59]} cxd4 {[%emt 0:00:09]} 10. Ne2 {[%emt 0:01:33]} (10. bxa6 $2 dxc3 11. e5 Bxa6 (11... dxe5 $2 12. b4 $19) 12. Bxa6 (12. Rxa6 $2 Rxa6 13. Bxa6 Qb6+ 14. Qd4 Qxa6 $19) 12... Qb6+ (12... dxe5 13. Kh1 $17) 13. Qd4 Rxa6 $19) (10. Na4 $14) 10... Qb6 {[%emt 0:12:46]} (10... axb5 $11 {might be stronger.} 11. Rxa8 Bxa8) 11. Bd2 {[%emt 0:07:52]} Ngf6 {[%emt 0:03:54]} 12. Ba5 {[%emt 0:22:08]} (12. Nfxd4 axb5 (12... Bxe4 13. Ba5 $14) (12... Nxe4 13. Be3 $11) 13. e5 dxe5 14. fxe5 Nxe5 15. Bxb5+ Nfd7 $19) 12... Qa7 {[%emt 0:04:39]} 13. e5 {[%emt 0:09:36]} Ng4 {[%emt 0:02:59]} 14. bxa6 {[%emt 0:10:12]} Bxa6 {[%emt 0:17:03]} (14... Bxf3 $1 $15 {keeps the upper hand.} 15. Rxf3 (15. gxf3 Ne3 $15) 15... dxe5) 15. Bd2 {[%emt 0:06:09]} (15. Nexd4 Ne3 16. Qe1 (16. Nc6 $2 Qc5 $19) 16... Bxd3 $17 (16... Nxf1 17. Bc3 $15)) 15... Qb6 {[%emt 0:05:51][%cal Rd6e5]} 16. Qc1 {[%emt 0:01:48]} (16. Nfxd4 dxe5 17. fxe5 Bb7 $19 (17... Ngxe5 18. Bxa6 Rxa6 19. Rxa6 $15) (17... Ndxe5 18. Bb5+ Nd7 19. c3 $11) (17... Bxe5 18. Rxa6 Rxa6 19. Bxa6 $17)) (16. Nexd4 dxe5 17. Bxa6 exd4 $19) (16. Rxa6 $14 Rxa6 17. Bxa6 (17. Nexd4 Ra7 $17) (17. h3 dxe5 18. hxg4 e4 $11) 17... Qxa6 18. Qa1 (18. Nfxd4 dxe5 19. fxe5 Ngxe5 $15)) 16... dxe5 $17 {[%emt 0:04:17][%cal Oe5e4] [#] Hoping for ...e4!.} 17. fxe5 {[%emt 0:00:10]} O-O {[%emt 0:06:00]} (17... Ndxe5 18. Bxa6 Rxa6 19. Rxa6 Qxa6 20. Nfxd4 $17) ({Worse is} 17... Bxe5 18. h3 Ne3 19. Bxe3 dxe3 20. Nxe5 Nxe5 21. Bxa6 Rxa6 22. Rxa6 Qxa6 23. Qxe3 $11) 18. Ng3 {[%emt 0:01:16]} (18. Rxa6 $17 Rxa6 19. e6) 18... Bxd3 $19 {[%emt 0:03:35]} (18... Bxe5 19. Nxe5 Ngxe5 (19... Ndxe5 20. Bxa6 Rxa6 21. Rxa6 $17) 20. Rxa6 Rxa6 21. Bxa6 Qxa6 22. Bb4 $19) 19. cxd3 {[%emt 0:00:09]} Rxa1 {[%emt 0:03:18]} (19... Bxe5 20. Rxa8 Rxa8 21. Ne4 $17) 20. Qxa1 {[%emt 0:00:01]} Ngxe5 {[%emt 0:00:09]} (20... Bxe5 21. Ne4) 21. Qa3 {[%emt 0:00:25]} Nxf3+ {[%emt 0:00:17]} 22. Rxf3 {[%emt 0:00:06]} Ne5 {[%emt 0:00:14]} 23. Rf1 {[%emt 0:00:33]} Qb7 {[%emt 0:00:17]} 24. Ra1 {[%emt 0:01:03]} h5 {[%emt 0:00:17]} 25. Ne4 {[%emt 0:00:56]} Qb5 {[%emt 0:01:56] Black is more active.} 26. Qxe7 {[%emt 0:00:52]} Qxd3 {[%emt 0:00:45]} ({But not} 26... Nxd3 27. b4 $17) 27. Nf6+ {[%emt 0:00:09]} Bxf6 {[%emt 0:01:17]} 28. Qxf6 {[%emt 0:00:02]} Qxd2 {[%emt 0:00:49]} 29. Qxe5 {[%emt 0:00:04][%mdl 4096] Endgame KQR-KQR. Black is a pawn up.} Rc8 {[%emt 0:00:45]} (29... Qxb2 $19 30. Rf1 Qb6) 30. b3 $2 {[%emt 0:01:26][%mdl 8192]} (30. Rf1 $17) 30... Rc1+ {[%emt 0:01:14]} 31. Rxc1 {[%emt 0:00:06]} Qxc1+ {[%emt 0:00:04] KQ-KQ. Black is a pawn up.} 32. Kf2 {[%emt 0:00:01]} d3 {[%emt 0:00:24] ( -> ...d2)} 33. Qe8+ {[%emt 0:00:33]} Kg7 {[%emt 0:00:06] ( -> ...Qc2+)} 34. Qe5+ {[%emt 0:00:27]} Kh7 {[%emt 0:00:40]} 35. Qd5 $2 {[%emt 0:01:21] [#]} (35. Qe7 $19 Qf4+ 36. Ke1) 35... Qd2+ {[%emt 0:00:22] Black mates.} 36. Kg3 {[%emt 0:00:35]} Qe1+ {[%emt 0:00:58]} 37. Kf3 {[%emt 0:00:37]} Qe2+ {[%emt 0:00:38]} 38. Kf4 {[%emt 0:00:00]} Qf2+ {[%emt 0:00:00]} 39. Qf3 {Weighted Error Value: White=0.70/Black=0.20 (precise)   Loses game:     	White=1     	---        Mistake:       	White=4     	Black=3      Inaccurate:     	White=2     	Black=1      OK:         	White=6     	Black=13     Best:        	White=4     	Black=5} 0-1

[Event "FIDE WSTC Open 50 2025"]
[Site "Prague"]
[Date "2025.02.17"]
[Round "1.18"]
[White "Temirbayev, Serikbay"]
[Black "Bulanova, Irina"]
[Result "1-0"]
[Annotator "TA"]
[ECO "D30"]
[WhiteElo "2372"]
[BlackElo "1937"]
[PlyCount "41"]
[EventDate "2025.02.17"]
[EventType "team-tourn"]
[EventCountry "CZE"]
[SourceTitle "playchess.com"]
[Source "ChessBase"]
[SourceQuality "1"]
[TimeControl "40/5400+30:1800+30"]

{[%evp 15,41,38,87,93,95,72,121,118,106,106,161,158,192,191,192,188,252,251,261,257,251,248,378,376,363,362,1090,1087]} 1. d4 {[%emt 0:00:05]} d5 {[%emt 0:00:05]} 2. c4 {[%emt 0:00:19]} e6 {[%emt 0:00:05]} 3. Nf3 {[%emt 0:00:33]} c5 {[%emt 0:00:25]} 4. cxd5 {[%emt 0:00:50]} exd5 {[%emt 0:00:06]} 5. g3 {[%emt 0:02:14]} Nc6 {[%emt 0:01:35]} 6. Bg2 {[%emt 0:02:46]} Nf6 {[%emt 0:00:31]} 7. O-O {[%emt 0:01:36]} cxd4 {[%emt 0:02:33]} 8. Nxd4 {[%emt 0:00:38]} Bc5 {[%emt 0:00:28] [#] 8...Bc5 is better than 8...Be7.} (8... Be7 $14 {might be stronger.}) 9. Nxc6 $1 $16 {[%emt 0:04:36] D30: Queen's Gambit Declined: Systems without Nc3.} bxc6 {[%emt 0:00:29] [#]} 10. Qc2 $1 {[%emt 0:00:25]} Bb6 {[%emt 0:06:32]} (10... Qb6 $142) 11. Qxc6+ {[%emt 0:02:44][%csl Oa7,Od5] Black has weak pawns. White is better.} Bd7 {[%emt 0:00:36]} 12. Qd6 {[%emt 0:02:52][%cal Ob1c3] White has more active pieces.} Bc7 {[%emt 0:13:30]} (12... Rc8 $16) 13. Qa3 $18 {[%emt 0:00:50]} Bc6 $146 {[%emt 0:22:50]} (13... h5 14. Bg5 Be6 15. Nc3 h4 16. Rfd1 hxg3 17. hxg3 Rh5 18. Nxd5 Bxd5 19. Rxd5 Nxd5 20. Bxd8 Rxd8 {1-0 Karmanova,O (2301)-Munkhpurev,M (2035) Wch U18 Girls 2024 (2)}) 14. Bg5 {[%emt 0:06:05]} Bd6 {[%emt 0:04:57]} 15. Qe3+ {[%emt 0:02:19]} Kf8 {[%emt 0:04:08]} (15... Qe7 {was called for.} 16. Rc1 Qxe3 17. Bxe3 Be5) 16. Nc3 {[%emt 0:07:59]} h6 {[%emt 0:14:53]} 17. Bxf6 {[%emt 0:02:24]} Qxf6 {[%emt 0:00:05]} 18. Rad1 {[%emt 0:02:27]} g6 {[%emt 0:10:24]} (18... Re8 $142) 19. Bxd5 {[%emt 0:01:32]} Bxd5 {[%emt 0:05:22]} 20. Rxd5 {[%emt 0:02:11] and Ne4 should not be overlooked} (20. Nxd5 Qxb2 21. Qd3 h5 $16) 20... Rb8 $2 {[%emt 0:00:40]} (20... Be7 21. Rfd1 Rc8 22. Qxa7 Kg7) 21. Ne4 {[%emt 0:00:16] Black did not feel at home in the position after the opening.   Weighted Error Value: White=0.00 (flawless) /Black=0.80  Mistake:       	---       	Black=5      OK:         	White=6     	Black=1      Best:        	White=2     	Black=1      Strong:       	White=1     	---} 1-0